[Event "ESP-chT 2nd Division 2019"]
[Site "Linares"]
[Date "2019.08.23"]
[Round "7.3"]
[White "Laiz Ibanez, Hector"]
[Black "Garriga Cazorla, Pere"]
[Result "1-0"]
[ECO "C78"]
[WhiteElo "2274"]
[BlackElo "2495"]
[Annotator "ChessBase"]
[PlyCount "65"]
[EventDate "2019.08.19"]
[EventType "team-tourn"]
[EventCountry "ESP"]
[SourceTitle "playchess.com"]
[Source "ChessBase"]
[SourceQuality "1"]
[TimeControl "5400+30"]

1. e4 {[%emt 0:00:00]} e5 {[%emt 0:00:00]} 2. Nf3 {[%emt 0:00:00]} Nc6 {[%emt 0:00:00]} 3. Bb5 {[%emt 0:00:00]} a6 {[%emt 0:00:00]} 4. Ba4 {[%emt 0:00:02]} Nf6 {[%emt 0:00:00]} 5. O-O {[%emt 0:00:29]} b5 {[%emt 0:00:00]} 6. Bb3 {[%emt 0:00:10]} Bc5 {[%emt 0:00:06]} 7. a4 {[%emt 0:00:43]} Rb8 {[%emt 0:00:07]} 8. Nxe5 {[%emt 0:00:30]} Nxe5 {[%emt 0:00:16]} 9. d4 {[%emt 0:00:03]} Bxd4 {[%emt 0:00:05]} 10. Qxd4 {[%emt 0:00:03]} d6 {[%emt 0:00:04]} 11. Bf4 {[%emt 0:13:01]} O-O {[%emt 0:09:48]} 12. f3 {[%emt 0:15:51]} Re8 {[%emt 0:09:46]} 13. Rd1 {[%emt 0:02:11]} Be6 {[%emt 0:04:07]} 14. Nc3 {[%emt 0:08:46]} Nfd7 {[%emt 0:13:06]} 15. Bd5 {[%emt 0:17:10]} b4 {[%emt 0:13:25]} 16. Ne2 {[%emt 0:01:46]} a5 {[%emt 0:01:44]} 17. Bg3 {[%emt 0:00:39]} h5 {[%emt 0:03:28]} 18. Bxe6 {[%emt 0:15:05]} fxe6 {[%emt 0:02:01]} 19. Bxe5 {[%emt 0:01:17]} Nxe5 {[%emt 0:00:08]} 20. f4 {[%emt 0:00:23]} Ng6 {[%emt 0:01:38]} 21. Qc4 {[%emt 0:00:14]} Kh7 {[%emt 0:03:34]} 22. Rd3 {[%emt 0:00:08]} h4 {[%emt 0:06:22]} 23. Rf1 {[%emt 0:00:59]} Qd7 {[%emt 0:04:33]} 24. Nd4 {[%emt 0:07:29]} e5 {[%emt 0:01:46]} 25. f5 {[%emt 0:03:30]} exd4 {[%emt 0:00:05]} 26. fxg6+ {[%emt 0:00:06]} Kxg6 {[%emt 0:00:03]} 27. Rf4 {[%emt 0:03:50]} Re5 {[%emt 0:01:38]} 28. Rxh4 {[%emt 0:00:39]} c5 {[%emt 0:04:28]} 29. Rg3+ {[%emt 0:00:27]} Rg5 {[%emt 0:00:18]} 30. Qd5 {[%emt 0:00:57]} Rxg3 {[%emt 0:02:12]} 31. Qh5+ {[%emt 0:00:04]} Kf6 {[%emt 0:00:07]} 32. Rf4+ {[%emt 0:00:10]} Ke6 {[%emt 0:00:36]} 33. Qd5+ {[%emt 0:00:19] Kxd5} 1-0

[Event "ESP-chT 2nd Division 2019"]
[Site "Linares"]
[Date "2019.08.23"]
[Round "7.4"]
[White "Fernandez Diaz, Cristian"]
[Black "Abal Cores, Lucas"]
[Result "1/2-1/2"]
[ECO "A81"]
[WhiteElo "2303"]
[BlackElo "2290"]
[Annotator "ChessBase"]
[PlyCount "61"]
[EventDate "2019.08.19"]
[EventType "team-tourn"]
[EventCountry "ESP"]
[SourceTitle "playchess.com"]
[Source "ChessBase"]
[SourceQuality "1"]
[TimeControl "5400+30"]

1. d4 {[%emt 0:00:00]} f5 {[%emt 0:00:00]} 2. g3 {[%emt 0:00:00]} Nf6 {[%emt 0:00:00]} 3. Bg2 {[%emt 0:00:04]} g6 {[%emt 0:00:17]} 4. Nf3 {[%emt 0:00:06]} Bg7 {[%emt 0:00:34]} 5. O-O {[%emt 0:00:10]} O-O {[%emt 0:00:21]} 6. b3 {[%emt 0:01:18]} d6 {[%emt 0:00:44]} 7. Bb2 {[%emt 0:00:20]} c6 {[%emt 0:01:42]} 8. Nbd2 {[%emt 0:01:47]} Na6 {[%emt 0:00:59]} 9. Ne1 {[%emt 0:04:21]} Qe8 {[%emt 0:04:31]} 10. Nd3 {[%emt 0:01:52]} Qf7 {[%emt 0:04:40]} 11. Re1 {[%emt 0:05:42]} Nc7 {[%emt 0:08:40]} 12. e4 {[%emt 0:03:41]} fxe4 {[%emt 0:00:01]} 13. Nxe4 {[%emt 0:00:08]} Nxe4 {[%emt 0:00:14]} 14. Bxe4 {[%emt 0:00:08]} Ne6 {[%emt 0:00:05]} 15. c3 {[%emt 0:12:58]} Ng5 {[%emt 0:04:35]} 16. f4 {[%emt 0:01:36]} Nxe4 {[%emt 0:05:23]} 17. Rxe4 {[%emt 0:00:02]} Bf5 {[%emt 0:00:59]} 18. Re3 {[%emt 0:00:25]} a5 {[%emt 0:00:21]} 19. Nf2 {[%emt 0:01:44]} b5 {[%emt 0:11:53]} 20. Qe2 {[%emt 0:02:54]} Rfe8 {[%emt 0:03:34]} 21. Re1 {[%emt 0:03:25]} Ra7 {[%emt 0:04:28]} 22. Ne4 {[%emt 0:03:39]} Bxe4 {[%emt 0:04:21]} 23. Rxe4 {[%emt 0:00:22]} a4 {[%emt 0:00:10]} 24. bxa4 {[%emt 0:04:12]} Rxa4 {[%emt 0:00:21]} 25. a3 {[%emt 0:00:09]} Kf8 {[%emt 0:09:11]} 26. Re6 {[%emt 0:02:50]} Rc4 {[%emt 0:01:17]} 27. Qe4 {[%emt 0:03:53]} Qf5 {[%emt 0:07:55]} 28. Qe2 {[%emt 0:02:08]} Qf7 {[%emt 0:00:08]} 29. Qe4 {[%emt 0:00:49]} Qf5 {[%emt 0:00:05]} 30. Qe2 {[%emt 0:00:22]} Qf7 {[%emt 0:00:28]} 31. Qe4 {[%emt 0:00:08]} 1/2-1/2

[Event "ESP-chT 2nd Division 2019"]
[Site "Linares"]
[Date "2019.08.23"]
[Round "7.5"]
[White "Dorado Meijide, Andrea"]
[Black "Munoz Munoz, Teresa"]
[Result "1-0"]
[ECO "B00"]
[WhiteElo "1762"]
[BlackElo "1808"]
[Annotator "NA"]
[PlyCount "69"]
[EventDate "2019.08.19"]
[EventType "team-tourn"]
[EventCountry "ESP"]
[SourceTitle "playchess.com"]
[Source "ChessBase"]
[SourceQuality "1"]
[TimeControl "5400+30"]

1. e4 {[%emt 0:00:00]} b6 {[%emt 0:00:00]} 2. Nf3 {[%emt 0:00:30]} Bb7 {[%emt 0:00:30]} 3. Qe2 {[%emt 0:00:51]} e6 {[%emt 0:00:18]} 4. g3 {[%emt 0:00:19]} g6 {[%emt 0:01:22]} 5. Bg2 {[%emt 0:00:06]} Bg7 {[%emt 0:00:05]} 6. O-O {[%emt 0:00:21]} Ne7 {[%emt 0:00:11]} 7. Nc3 {[%emt 0:01:48]} O-O {[%emt 0:00:25]} 8. Re1 {[%emt 0:01:53]} d6 {[%emt 0:00:15]} 9. d4 {[%emt 0:00:45]} Nd7 {[%emt 0:00:25]} 10. Be3 {[%emt 0:01:06]} d5 {[%emt 0:08:36]} 11. exd5 {[%emt 0:05:36]} Nxd5 {[%emt 0:02:30]} 12. Nxd5 {[%emt 0:00:34]} Bxd5 {[%emt 0:10:43]} 13. c4 {[%emt 0:00:46]} Bb7 {[%emt 0:00:14]} 14. Rad1 {[%emt 0:02:02]} Nf6 {[%emt 0:05:01]} 15. Bg5 {[%emt 0:02:41]} h6 {[%emt 0:00:34]} 16. Bf4 {[%emt 0:05:05]} g5 {[%emt 0:18:22]} 17. Bc1 {[%emt 0:06:52]} Qd6 {[%emt 0:15:28]} 18. h4 {[%emt 0:05:37]} gxh4 {[%emt 0:06:52]} 19. Bf4 {[%emt 0:00:15]} Qd8 {[%emt 0:03:56]} 20. Nxh4 {[%emt 0:00:39]} Bxg2 {[%emt 0:00:44]} 21. Nxg2 {[%emt 0:00:49]} Ne8 {[%emt 0:03:39]} 22. Qh5 {[%emt 0:01:30]} Qf6 {[%emt 0:02:46]} 23. Ne3 {[%emt 0:02:03]} Qg6 {[%emt 0:04:27]} 24. Qf3 {[%emt 0:03:34]} Rd8 {[%emt 0:04:47]} 25. Ng4 {[%emt 0:01:29]} h5 {[%emt 0:04:06]} 26. Ne5 {[%emt 0:00:50]} Bxe5 {[%emt 0:01:42]} 27. Rxe5 {[%emt 0:00:08]} Ng7 {[%emt 0:00:57]} 28. Rg5 {[%emt 0:00:55]} Qf6 {[%emt 0:00:40]} 29. Qe3 {[%emt 0:00:32]} c5 {[%emt 0:03:47]} 30. Be5 {[%emt 0:00:05]} cxd4 {[%emt 0:01:05]} 31. Bxf6 {[%emt 0:01:41]} dxe3 {[%emt 0:00:24]} 32. Rxg7+ {[%emt 0:00:05]} Kh8 {[%emt 0:00:29]} 33. Rg5+ {[%emt 0:00:32]} Kh7 {[%emt 0:00:07]} 34. Rxd8 {[%emt 0:00:26]} e2 {[%emt 0:00:34]} 35. Re5 {[%emt 0:00:07]} 1-0

[Event "ESP-chT 2nd Division 2019"]
[Site "Linares"]
[Date "2019.08.23"]
[Round "7.7"]
[White "Del Rio De Angelis, Salvador G."]
[Black "Nayhebaver, Martin"]
[Result "1-0"]
[ECO "E48"]
[WhiteElo "2472"]
[BlackElo "2469"]
[Annotator "ChessBase"]
[PlyCount "97"]
[EventDate "2019.08.19"]
[EventType "team-tourn"]
[EventCountry "ESP"]
[SourceTitle "playchess.com"]
[Source "ChessBase"]
[SourceQuality "1"]
[TimeControl "5400+30"]

1. d4 {[%emt 0:00:00]} Nf6 {[%emt 0:00:08]} 2. c4 {[%emt 0:00:15]} e6 {[%emt 0:00:45]} 3. Nc3 {[%emt 0:00:33]} Bb4 {[%emt 0:00:44]} 4. e3 {[%emt 0:00:36]} O-O {[%emt 0:00:40]} 5. Bd3 {[%emt 0:00:17]} d5 {[%emt 0:02:07]} 6. a3 {[%emt 0:01:14]} dxc4 {[%emt 0:05:09]} 7. Bxc4 {[%emt 0:00:48]} Be7 {[%emt 0:01:02]} 8. Nf3 {[%emt 0:02:30]} b6 {[%emt 0:01:30]} 9. O-O {[%emt 0:04:27]} Bb7 {[%emt 0:00:44]} 10. Qe2 {[%emt 0:00:43]} Ne4 {[%emt 0:04:45]} 11. Nxe4 {[%emt 0:03:18]} Bxe4 {[%emt 0:00:06]} 12. Rd1 {[%emt 0:00:23]} Qc8 {[%emt 0:03:06]} 13. b4 {[%emt 0:04:05]} Qb7 {[%emt 0:02:29]} 14. Bb2 {[%emt 0:10:42]} a6 {[%emt 0:09:08]} 15. Nd2 {[%emt 0:05:42]} Bc6 {[%emt 0:04:31]} 16. Qg4 {[%emt 0:04:38]} Bd5 {[%emt 0:02:24]} 17. e4 {[%emt 0:06:05]} f5 {[%emt 0:02:23]} 18. Bxd5 {[%emt 0:00:10]} exd5 {[%emt 0:00:29]} 19. exf5 {[%emt 0:00:05]} Qc8 {[%emt 0:02:27]} 20. Re1 {[%emt 0:00:09]} Bd6 {[%emt 0:00:07]} 21. Re6 {[%emt 0:00:07]} Nc6 {[%emt 0:00:15]} 22. Ne4 {[%emt 0:07:12]} Qd8 {[%emt 0:21:32]} 23. Ng5 {[%emt 0:08:17]} Qd7 {[%emt 0:03:43]} 24. Rae1 {[%emt 0:03:34]} Nd8 {[%emt 0:02:14]} 25. R6e3 {[%emt 0:06:35]} Nf7 {[%emt 0:02:10]} 26. Ne6 {[%emt 0:00:30]} Nh6 {[%emt 0:01:14]} 27. Nxf8 {[%emt 0:00:13]} Bxh2+ {[%emt 0:06:14]} 28. Kh1 {[%emt 0:00:05]} Rxf8 {[%emt 0:00:05]} 29. Qf3 {[%emt 0:00:47]} Bd6 {[%emt 0:01:23]} 30. Qxd5+ {[%emt 0:00:23]} Kh8 {[%emt 0:00:02]} 31. Qe6 {[%emt 0:01:24]} Qd8 {[%emt 0:01:37]} 32. f6 {[%emt 0:01:21]} Qxf6 {[%emt 0:00:28]} 33. Qxf6 {[%emt 0:00:05]} gxf6 {[%emt 0:00:04]} 34. Rf3 {[%emt 0:00:38]} Kg7 {[%emt 0:00:30]} 35. Bc1 {[%emt 0:01:27]} Ng8 {[%emt 0:03:51]} 36. Bf4 {[%emt 0:01:38]} Bxf4 {[%emt 0:00:15]} 37. Rxf4 {[%emt 0:00:06]} Rd8 {[%emt 0:00:03]} 38. Rg4+ {[%emt 0:02:23]} Kf7 {[%emt 0:01:16]} 39. Rh4 {[%emt 0:00:09]} h6 {[%emt 0:00:57]} 40. Rc1 {[%emt 0:00:54]} Rd7 {[%emt 0:00:08]} 41. Rc3 {[%emt 0:00:54]} f5 {[%emt 0:00:55]} 42. Rc6 {[%emt 0:00:22]} Kg7 {[%emt 0:00:40]} 43. Kg1 {[%emt 0:02:45]} Nf6 {[%emt 0:00:53]} 44. Rf4 {[%emt 0:00:59]} Nd5 {[%emt 0:01:02]} 45. Rh4 {[%emt 0:00:34]} Nf6 {[%emt 0:01:16]} 46. Kf1 {[%emt 0:02:36]} h5 {[%emt 0:01:01]} 47. Rh3 f4 48. Rd3 {[%emt 0:02:39]} Kg6 {[%emt 0:00:51]} 49. d5 {[%emt 0:00:54]} 1-0

[Event "ESP-chT 2nd Division 2019"]
[Site "Linares"]
[Date "2019.08.23"]
[Round "7.8"]
[White "Khamrakulov, Ibragim S."]
[Black "Iruzubieta Villaluenga, Jesus M"]
[Result "0-1"]
[ECO "C55"]
[WhiteElo "2429"]
[BlackElo "2438"]
[Annotator "ChessBase"]
[PlyCount "74"]
[EventDate "2019.08.19"]
[EventType "team-tourn"]
[EventCountry "ESP"]
[SourceTitle "playchess.com"]
[Source "ChessBase"]
[SourceQuality "1"]
[TimeControl "5400+30"]

1. e4 {[%emt 0:07:17]} e5 {[%emt 0:00:00]} 2. Nf3 {[%emt 0:00:54]} Nc6 {[%emt 0:00:00]} 3. Bc4 {[%emt 0:00:22]} Nf6 {[%emt 0:00:00]} 4. d3 {[%emt 0:00:21]} h6 {[%emt 0:00:10]} 5. O-O {[%emt 0:00:10]} d6 {[%emt 0:00:08]} 6. Nc3 {[%emt 0:01:20]} Na5 {[%emt 0:00:37]} 7. Bb3 {[%emt 0:02:52]} Nxb3 {[%emt 0:04:13]} 8. axb3 {[%emt 0:00:07]} Be7 {[%emt 0:05:30]} 9. d4 {[%emt 0:00:09]} exd4 {[%emt 0:00:36]} 10. Qxd4 {[%emt 0:00:14]} a6 {[%emt 0:01:39]} 11. b4 {[%emt 0:00:57]} Bg4 {[%emt 0:23:48]} 12. Nd2 {[%emt 0:00:35]} O-O {[%emt 0:01:38]} 13. Nc4 {[%emt 0:04:10]} Re8 {[%emt 0:15:16]} 14. h3 {[%emt 0:02:19]} Be6 {[%emt 0:00:53]} 15. Bf4 {[%emt 0:00:18]} d5 {[%emt 0:05:08]} 16. exd5 {[%emt 0:19:08]} Bxb4 {[%emt 0:09:16]} 17. Ne3 {[%emt 0:00:57]} Bxc3 {[%emt 0:04:18]} 18. Qxc3 {[%emt 0:02:57]} Nxd5 {[%emt 0:00:24]} 19. Nxd5 {[%emt 0:00:08]} Qxd5 {[%emt 0:00:20]} 20. Bxc7 {[%emt 0:00:18]} Rac8 {[%emt 0:05:02]} 21. Qg3 {[%emt 0:00:30]} Bxh3 {[%emt 0:04:00]} 22. gxh3 {[%emt 0:04:40]} Re6 {[%emt 0:00:15]} 23. Ra4 {[%emt 0:01:45]} h5 {[%emt 0:03:48]} 24. Ra5 {[%emt 0:05:54]} b5 {[%emt 0:00:36]} 25. c4 {[%emt 0:00:06]} Qxc4 {[%emt 0:07:15]} 26. Bf4 {[%emt 0:02:26]} Rg6 {[%emt 0:00:24]} 27. Bg5 {[%emt 0:02:10]} f6 {[%emt 0:01:11]} 28. h4 {[%emt 0:01:02]} fxg5 {[%emt 0:00:16]} 29. hxg5 {[%emt 0:00:14]} Qc5 {[%emt 0:00:25]} 30. Kh1 {[%emt 0:06:36]} Rxg5 {[%emt 0:00:21]} 31. Qb3+ {[%emt 0:00:09]} Qc4 {[%emt 0:01:00]} 32. Qxc4+ {[%emt 0:05:20]} Rxc4 {[%emt 0:00:02]} 33. f4 {[%emt 0:00:10]} Rf5 {[%emt 0:00:09]} 34. Rxa6 {[%emt 0:00:23]} Rcxf4 {[%emt 0:00:08]} 35. Rg1 {[%emt 0:00:55]} Rh4+ {[%emt 0:00:36]} 36. Kg2 {[%emt 0:00:07]} Rg5+ {[%emt 0:00:21]} 37. Kf2 {[%emt 0:00:11]} Rh2+ {[%emt 0:00:11]} 0-1

[Event "ESP-chT 2nd Division 2019"]
[Site "Linares"]
[Date "2019.08.23"]
[Round "7.9"]
[White "Trigo Urquijo, Sergio"]
[Black "Soham Das"]
[Result "1/2-1/2"]
[ECO "B52"]
[WhiteElo "2385"]
[BlackElo "2339"]
[Annotator "ChessBase"]
[PlyCount "61"]
[EventDate "2019.08.19"]
[EventType "team-tourn"]
[EventCountry "ESP"]
[SourceTitle "playchess.com"]
[Source "ChessBase"]
[SourceQuality "1"]
[TimeControl "5400+30"]

1. e4 {[%emt 0:00:00]} c5 {[%emt 0:00:27]} 2. Nf3 {[%emt 0:00:00]} d6 {[%emt 0:00:43]} 3. Bb5+ {[%emt 0:00:00]} Bd7 {[%emt 0:00:07]} 4. Bxd7+ {[%emt 0:00:12]} Nxd7 {[%emt 0:00:01]} 5. O-O {[%emt 0:00:33]} Ngf6 {[%emt 0:00:34]} 6. Qe2 {[%emt 0:00:25]} Rc8 {[%emt 0:04:31]} 7. b3 {[%emt 0:03:08]} g6 {[%emt 0:01:08]} 8. Bb2 {[%emt 0:01:47]} Bg7 {[%emt 0:00:21]} 9. c4 {[%emt 0:02:48]} e5 {[%emt 0:00:20]} 10. Nc3 {[%emt 0:05:58]} Nf8 {[%emt 0:00:40]} 11. Nd5 {[%emt 0:05:08]} Ne6 {[%emt 0:00:38]} 12. g3 {[%emt 0:03:20]} O-O {[%emt 0:08:46]} 13. d3 {[%emt 0:06:47]} Nxd5 {[%emt 0:16:03]} 14. cxd5 {[%emt 0:10:58]} Nd4 {[%emt 0:00:01]} 15. Nxd4 {[%emt 0:10:30]} exd4 {[%emt 0:17:27]} 16. f4 {[%emt 0:04:09]} f5 {[%emt 0:08:35]} 17. exf5 {[%emt 0:01:09]} Re8 {[%emt 0:00:02]} 18. Qg4 {[%emt 0:02:47]} Qd7 {[%emt 0:00:09]} 19. Rae1 {[%emt 0:01:19]} Qxf5 {[%emt 0:02:19]} 20. Qxf5 {[%emt 0:06:47]} gxf5 {[%emt 0:00:07]} 21. Rxe8+ {[%emt 0:00:39]} Rxe8 {[%emt 0:00:01]} 22. Kf2 {[%emt 0:00:19]} Kf7 {[%emt 0:00:40]} 23. Re1 {[%emt 0:03:26]} Rxe1 {[%emt 0:01:20]} 24. Kxe1 {[%emt 0:00:06]} b5 {[%emt 0:00:05]} 25. Bc1 {[%emt 0:01:36]} a5 {[%emt 0:00:45]} 26. a4 {[%emt 0:00:59]} b4 {[%emt 0:00:21]} 27. Ke2 {[%emt 0:00:15]} Kg6 {[%emt 0:00:11]} 28. Kf3 {[%emt 0:00:10]} h5 {[%emt 0:00:11]} 29. Bd2 {[%emt 0:00:46]} Bf6 {[%emt 0:00:28]} 30. h3 {[%emt 0:00:47]} Be7 {[%emt 0:00:06]} 31. Be1 {[%emt 0:00:29]} 1/2-1/2

[Event "ESP-chT 2nd Division 2019"]
[Site "Linares"]
[Date "2019.08.23"]
[Round "7.10"]
[White "Calzetta Ruiz, Monica"]
[Black "Sosa Suarez, Carla Cristina"]
[Result "0-1"]
[ECO "C03"]
[WhiteElo "2257"]
[BlackElo "2135"]
[Annotator "ChessBase"]
[PlyCount "64"]
[EventDate "2019.08.19"]
[EventType "team-tourn"]
[EventCountry "ESP"]
[SourceTitle "playchess.com"]
[Source "ChessBase"]
[SourceQuality "1"]
[TimeControl "5400+30"]

1. e4 {[%emt 0:00:41]} e6 {[%emt 0:00:00]} 2. d4 {[%emt 0:00:10]} d5 {[%emt 0:00:00]} 3. Nd2 {[%emt 0:00:11]} Be7 {[%emt 0:00:00]} 4. e5 {[%emt 0:00:33]} c5 {[%emt 0:00:00]} 5. c3 {[%emt 0:00:17]} Nc6 {[%emt 0:00:00]} 6. Bd3 {[%emt 0:00:15]} Bd7 {[%emt 0:00:11]} 7. Ndf3 {[%emt 0:04:02]} f6 {[%emt 0:01:08]} 8. Ne2 {[%emt 0:02:16]} fxe5 {[%emt 0:00:43]} 9. dxe5 {[%emt 0:03:50]} Qc7 {[%emt 0:01:01]} 10. Bf4 {[%emt 0:07:53]} Nh6 {[%emt 0:01:18]} 11. Ng3 {[%emt 0:22:00]} Nf7 {[%emt 0:05:09]} 12. h4 {[%emt 0:00:15]} O-O-O {[%emt 0:03:30]} 13. Qe2 {[%emt 0:00:05]} g6 {[%emt 0:03:07]} 14. O-O-O {[%emt 0:06:36]} c4 {[%emt 0:05:51]} 15. Bb1 {[%emt 0:04:32]} Kb8 {[%emt 0:01:23]} 16. Qe3 {[%emt 0:08:41]} Ka8 {[%emt 0:04:15]} 17. Ne2 {[%emt 0:00:20]} b5 {[%emt 0:01:42]} 18. Ned4 {[%emt 0:01:13]} Nxd4 {[%emt 0:00:35]} 19. Nxd4 {[%emt 0:01:17]} b4 {[%emt 0:01:12]} 20. Rh3 {[%emt 0:16:00]} Rb8 {[%emt 0:04:09]} 21. Nc2 {[%emt 0:14:30]} bxc3 {[%emt 0:04:10]} 22. Qxc3 {[%emt 0:00:07]} Rhc8 {[%emt 0:03:34]} 23. Rf3 {[%emt 0:02:30]} Ba4 {[%emt 0:07:09]} 24. Rd2 {[%emt 0:02:07]} Rb7 {[%emt 0:06:50]} 25. Nd4 {[%emt 0:01:13]} Qd7 {[%emt 0:01:21]} 26. Qa5 {[%emt 0:00:41]} Bb4 {[%emt 0:01:00]} 27. Qa6 {[%emt 0:00:12]} Rb6 {[%emt 0:00:59]} 28. Qxc8+ {[%emt 0:00:31]} Qxc8 {[%emt 0:00:04]} 29. Re2 {[%emt 0:00:13]} Bc5 {[%emt 0:05:25]} 30. Rd2 {[%emt 0:01:11]} Qb7 {[%emt 0:02:22]} 31. Bg3 {[%emt 0:00:36]} Bxd4 {[%emt 0:01:24]} 32. Rxd4 {[%emt 0:00:02]} Rxb2 {[%emt 0:00:41]} 0-1

[Event "ESP-chT 2nd Division 2019"]
[Site "Linares"]
[Date "2019.08.23"]
[Round "7.11"]
[White "Gamundi Salamanca, Antonio"]
[Black "Bernabeu Lopez, Carlos Javier"]
[Result "1/2-1/2"]
[ECO "A48"]
[WhiteElo "2444"]
[BlackElo "2370"]
[Annotator "ChessBase"]
[PlyCount "125"]
[EventDate "2019.08.19"]
[EventType "team-tourn"]
[EventCountry "ESP"]
[SourceTitle "playchess.com"]
[Source "ChessBase"]
[SourceQuality "1"]
[TimeControl "5400+30"]

1. d4 {[%emt 0:00:00]} Nf6 {[%emt 0:00:32]} 2. Nf3 {[%emt 0:00:00]} g6 {[%emt 0:00:36]} 3. Bg5 {[%emt 0:00:04]} Bg7 {[%emt 0:00:16]} 4. Nbd2 {[%emt 0:00:30]} d5 {[%emt 0:00:24]} 5. e3 {[%emt 0:00:07]} O-O {[%emt 0:00:28]} 6. Bd3 {[%emt 0:00:28]} c6 {[%emt 0:03:53]} 7. O-O {[%emt 0:00:38]} Bg4 {[%emt 0:01:51]} 8. h3 {[%emt 0:00:35]} Bxf3 {[%emt 0:00:07]} 9. Nxf3 {[%emt 0:00:02]} Nbd7 {[%emt 0:00:52]} 10. c4 {[%emt 0:01:10]} e6 {[%emt 0:02:25]} 11. Rc1 {[%emt 0:06:15]} Re8 {[%emt 0:05:05]} 12. cxd5 {[%emt 0:04:15]} exd5 {[%emt 0:00:25]} 13. b4 {[%emt 0:00:02]} a6 {[%emt 0:03:17]} 14. a4 {[%emt 0:01:02]} Re6 {[%emt 0:15:29]} 15. b5 cxb5 {[%emt 0:02:40]} 16. axb5 {[%emt 0:04:06]} a5 {[%emt 0:01:35]} 17. Qc2 {[%emt 0:06:21]} Bf8 {[%emt 0:03:05]} 18. Qc7 {[%emt 0:03:57]} Bd6 {[%emt 0:01:19]} 19. Qxd8+ {[%emt 0:02:56]} Rxd8 {[%emt 0:01:17]} 20. Rc2 {[%emt 0:02:53]} Ra8 {[%emt 0:00:41]} 21. Rfc1 {[%emt 0:01:35]} Ree8 {[%emt 0:15:25]} 22. Bf4 {[%emt 0:10:14]} Bxf4 {[%emt 0:01:50]} 23. exf4 {[%emt 0:01:16]} Nb6 {[%emt 0:00:27]} 24. Ne5 {[%emt 0:02:05]} Rec8 {[%emt 0:01:04]} 25. Kf1 {[%emt 0:08:01]} Rxc2 {[%emt 0:02:08]} 26. Rxc2 {[%emt 0:00:18]} a4 {[%emt 0:02:32]} 27. Ke2 {[%emt 0:09:17]} a3 {[%emt 0:00:56]} 28. Ra2 {[%emt 0:00:21]} Ne4 {[%emt 0:01:49]} 29. Ra1 {[%emt 0:00:07]} a2 {[%emt 0:04:21]} 30. Ng4 {[%emt 0:08:07]} Nd6 {[%emt 0:01:26]} 31. Ne3 {[%emt 0:02:15]} Ra4 {[%emt 0:04:11]} 32. g3 {[%emt 0:06:04]} Ne4 {[%emt 0:02:30]} 33. Nd1 {[%emt 0:04:10]} Ra3 {[%emt 0:00:37]} 34. Bxe4 {[%emt 0:02:38]} dxe4 {[%emt 0:00:05]} 35. Ne3 {[%emt 0:00:03]} Na4 {[%emt 0:02:45]} 36. Kd2 {[%emt 0:08:20]} Rd3+ {[%emt 0:04:52]} 37. Kc2 {[%emt 0:01:30]} Nc3 {[%emt 0:00:57]} 38. b6 {[%emt 0:01:21]} Kg7 {[%emt 0:02:27]} 39. Kb2 {[%emt 0:01:29]} Na4+ {[%emt 0:02:14]} 40. Kxa2 {[%emt 0:00:12]} Rxd4 {[%emt 0:00:27]} 41. Kb3 {[%emt 0:02:15]} Nxb6 {[%emt 0:00:23]} 42. Rd1 {[%emt 0:02:14]} Rxd1 {[%emt 0:00:30]} 43. Nxd1 {[%emt 0:00:01]} f5 {[%emt 0:02:05]} 44. Kb4 {[%emt 0:00:15]} Kf6 {[%emt 0:00:21]} 45. Kc5 {[%emt 0:00:38]} Nc8 {[%emt 0:00:01]} 46. Ne3 {[%emt 0:01:24]} Ke6 {[%emt 0:00:35]} 47. Nc4 {[%emt 0:00:48]} Kd7 {[%emt 0:01:31]} 48. Ne5+ {[%emt 0:00:27]} Kc7 {[%emt 0:00:09]} 49. Kd5 {[%emt 0:00:28]} Ne7+ {[%emt 0:00:27]} 50. Ke6 {[%emt 0:00:01]} Nc6 {[%emt 0:00:14]} 51. Nc4 {[%emt 0:01:07]} b5 {[%emt 0:00:18]} 52. Nd2 {[%emt 0:00:00]} Nb4 {[%emt 0:00:31]} 53. g4 {[%emt 0:00:36]} fxg4 {[%emt 0:01:44]} 54. hxg4 {[%emt 0:00:01]} Nd3 {[%emt 0:00:15]} 55. f5 {[%emt 0:00:41]} gxf5 {[%emt 0:02:55]} 56. gxf5 {[%emt 0:00:02]} Nxf2 {[%emt 0:00:06]} 57. f6 {[%emt 0:00:17]} e3 {[%emt 0:00:02]} 58. f7 {[%emt 0:01:57]} exd2 {[%emt 0:00:02]} 59. f8=Q {[%emt 0:00:09]} d1=Q {[%emt 0:00:05]} 60. Qc5+ {[%emt 0:00:11]} Kb7 {[%emt 0:00:33]} 61. Qxb5+ {[%emt 0:00:13]} Kc7 {[%emt 0:00:01]} 62. Qc5+ {[%emt 0:00:09]} Kb7 {[%emt 0:00:04]} 63. Qb5+ {[%emt 0:00:03]} 1/2-1/2